Cogmind - Beta 16.1 @@@ ROGUE MODE // 2026.02.09 @ 21:45:29 Player: horseradish Result: Destroyed by G-47 Trooper with Particle Gun Performance ------------- Evolutions (2) 1000 Regions Visited (3) 600 Robots Destroyed (21) 105 Value Destroyed (679) 679 Prototype IDs (0) 0 Alien Tech Used (0) 0 Bonus (0) 0 TOTAL SCORE: 2384 Bonus ------- None Cogmind --------- Core Integrity 0/550 Matter 300/300 Energy 155/160 System Corruption 0% Temperature Warm (119) Movement Walking (190) Ox1 Location -8/Materials Parts ------- > --- POWER (2) -------- Light Nuclear Core > --- PROPULSION (4) --- Carbon-fiber Leg > --- UTILITY (3) ------ Improved Heat Sink Medium Storage Unit System Shield > --- WEAPON (2) ------- Heavy Particle Cannon > --- INVENTORY (10) --- Improved Heat Sink Subdweller Optics Improved Terrain Scanner Multitool Peak State ------------ > --- POWER ------------ Improved Ion Engine Light Nuclear Core > --- PROPULSION ------- Carbon-fiber Leg Carbon-fiber Leg > --- UTILITY ---------- Improved Heat Sink Medium Storage Unit System Shield > --- WEAPON ----------- Heavy Particle Cannon > --- INVENTORY -------- Improved Heat Sink Subdweller Optics Improved Terrain Scanner Multitool [Rating: 22] Favorites ----------- Power Ion Engine Engine Ion Engine Power Core Light Nuclear Core Propulsion Aluminum Leg Treads Light Treads Leg Aluminum Leg Wheel Wheel Utility Improved Heat Sink Device Improved Heat Sink Storage Medium Storage Unit Processor Visual Processing Unit Hackware System Shield Protection Light Armor Plating Weapon Small Laser Energy Gun Small Laser Energy Cannon Heavy Particle Cannon Ballistic Gun Light Assault Rifle Build | -11 -10 -10 -8 ------- Run | Yrd Mat Sub Mat Slots Evolved 4 | . . . 4 Power 1 | . . . 1 Propulsion 2 | . . . 2 Utility 1 | . . . 1 Weapon . | . . . . Parts Attached 37 | 6 2 6 23 Power 7 | 1 1 . 5 Engine 6 | 1 1 . 4 Core 1 | . . . 1 Reactor . | . . . . Propulsion 12 | 2 . 2 8 Treads 1 | . . . 1 Leg 8 | 2 . 2 4 Wheel 3 | . . . 3 Hover . | . . . . Flight . | . . . . Utility 11 | 1 1 3 6 Device 6 | 1 . 3 2 Storage 1 | . . . 1 Processor 1 | . 1 . . Hackware 1 | . . . 1 Protection 2 | . . . 2 Artifact . | . . . . Weapon 7 | 2 . 1 4 Energy Gun 5 | 2 . 1 2 Energy Cannon 1 | . . . 1 Ballistic Gun 1 | . . . 1 Ballistic Cannon . | . . . . Launcher . | . . . . Special Weapon . | . . . . Impact Weapon . | . . . . Slashing Weapon . | . . . . Piercing Weapon . | . . . . Special Melee Weapon . | . . . . Unidentified Prototypes . | . . . . Parts Lost 20 | . . . 20 Power 5 | . . . 5 Propulsion 7 | . . . 7 Utility 2 | . . . 2 Weapon 6 | . . . 6 Highest Loss Streak 10 | . . . 10 To Critical Strikes . | . . . . Average Backups 5 | 1 3 4 6 Power . | . . . . Propulsion . | 1 2 1 . Utility 2 | . . 1 2 Weapon 1 | . 1 1 2 Tool/Special . | . . . . Unused Backups 4 | . . 2 2 Power . | . . . . Propulsion 2 | . . 2 . Utility 1 | . . . 1 Weapon . | . . . . Tool/Special 1 | . . . 1 Average Slot Usage (%) 82 | . 96 100 73 Engine 12 | . 14 14 10 Treads 2 | . . . 3 Leg 19 | . 28 28 14 Wheel 1 | . . . 2 Device 12 | . 14 15 11 Storage 5 | . . . 8 Processor 4 | . 10 12 . Protection 2 | . . . 4 Energy Gun 19 | . 28 28 15 Peak Build Rating 22 | 6 8 10 22 Average Rating 11 | 3 7 9 13 On Entrance 6 | . 6 8 10 Avg Prop Armor Cover (%) 9 | . . . 9 Naked Turns . | . . . . Heaviest Build 30 | 6 8 10 30 Greatest Support 30 | 20 20 20 30 Greatest Overweight (x) 4 | . . . 4 Average Overweight (x) . | . . . . Largest Inventory Capacity 10 | 5 5 5 10 Average Capacity 8 | 5 5 5 9 Most Carried 8 | 3 4 5 8 Average Carried 5 | 1 3 4 6 Final Capacity 10 | 5 5 5 10 Final Carried 4 | 3 4 4 4 Class Distribution -------------------- 57% | Scavenger-Mutant 42% | Mutant Dominant Class ---------------- Mutant | -10/Materials Mutant | -10/Subcaves Scavenger-Mutant | -8/Materials Resources | -11 -10 -10 -8 ----------- Run | Yrd Mat Sub Mat Matter Collected 571 | 260 20 60 231 Remotely . | . . . . Salvage Created 987 | 45 . 60 882 Parts 38 | 2 . 2 34 Haulers Intercepted . | . . . . Recyclers Shooed 2 | . . . 2 Parts Field Recycled . | . . . . Retrieved Matter . | . . . . Parts Self-Destructed 4 | . . 4 . Prevented . | . . . . Parts Restored . | . . . . Kills | -11 -10 -10 -8 ------- Run | Yrd Mat Sub Mat Combat Hostiles Destroyed 17 | 1 . 1 15 Guns 16 | 1 . 1 14 Cannons 1 | . . . 1 Classes Destroyed 7 | 1 . 1 5 Worker 2 | . . . 2 Recycler 2 | . . . 2 Swarmer 3 | . . . 3 Grunt 9 | 1 . . 8 Duelist 1 | . . . 1 Sentry 3 | . . . 3 Subdweller 1 | . . 1 . Best Kill Streak 5 | 1 . 1 5 Combat Bots Only 3 | 1 . 1 3 Max Kills in Single Turn 1 | 1 . 1 1 Gunslinging . | . . . . Exploded . | . . . . Melee . | . . . . Uniques/NPCs Destroyed . | . . . . Combat | -11 -10 -10 -8 -------- Run | Yrd Mat Sub Mat Hostile Shots Fired 257 | 1 . 26 230 Missed 93 | . . 12 81 Hits 164 | 1 . 14 149 Melee 1 | . . . 1 Projectile 163 | 1 . 14 148 Critical Strikes 10 | . . . 10 Damage Taken 2498 | 10 . 162 2326 Core 612 | 10 . 38 564 Absorbed by Shields . | . . . . Core Remaining (%) 88 | 96 . 80 . Volleys Fired 105 | 1 . 6 98 Largest 2 | 2 . 2 2 Hottest 96 | 80 . 80 96 Shots Fired 193 | 2 . 12 179 Gun 186 | 2 . 12 172 Cannon 7 | . . . 7 Launcher . | . . . . Special . | . . . . Kinetic 7 | . . . 7 Thermal 183 | 2 . 12 169 Explosive . | . . . . Electromagnetic 3 | . . . 3 Robot Hit Streak 12 | 2 . 12 12 Robot Miss Streak 8 | . . 2 8 Penetration Max . | . . . . Secondary Targets 2 | . . . 2 Max Gunslinging Chain 1 | . . . 1 Shots Hit Robots 130 | 2 . 10 118 Core Hits 49 | 2 . 2 45 Critical Kills . | . . . . Critical Parts Destroyed . | . . . . Critical Strikes 3 | . . . 3 Burn 3 | . . . 3 Melee Attacks . | . . . . Impact . | . . . . Slashing . | . . . . Piercing . | . . . . Sneak Attacks . | . . . . Combat Hostiles . | . . . . Follow-up Attacks . | . . . . Damage Inflicted 1600 | 20 . 89 1491 Guns 1474 | 20 . 89 1365 Cannons 125 | . . . 125 Explosions . | . . . . Melee . | . . . . Ramming 1 | . . . 1 Kinetic 47 | . . . 47 Thermal 1527 | 20 . 89 1418 Explosive . | . . . . Electromagnetic 25 | . . . 25 Impact . | . . . . Slashing . | . . . . Piercing . | . . . . Highest Corruption . | . . . . Average Corruption . | . . . . Corruption Purged . | . . . . Corruption Blocked . | . . . . Overload Shots . | . . . . Overflow Damage . | . . . . Projectiles . | . . . . Explosions . | . . . . Melee . | . . . . Knockbacks . | . . . . Impact . | . . . . Kinetic . | . . . . Secondary . | . . . . Self-Inflicted Damage . | . . . . Shots . | . . . . Rammed . | . . . . Targets Rammed 1 | . . . 1 Kicked 1 | . . . 1 Crushed . | . . . . Highest Temperature 128 | 18 . . 128 Average Temperature 32 | 12 . . 32 Received Heat Transfer 1323 | 6 . 48 1269 Siege Activations . | . . . . Martial Activations . | . . . . Shielding Activations . | . . . . Robots Disrupted . | . . . . Combat Hostiles . | . . . . Robots Corrupted . | . . . . Combat Hostiles . | . . . . Parts Fried . | . . . . Impact Corruptions . | . . . . Robots Melted . | . . . . Combat Hostiles . | . . . . Parts Melted 7 | . . . 7 Heat Transferred 3848 | 50 . 200 3598 Parts Sabotaged . | . . . . Parts Stolen . | . . . . Parts Stripped . | . . . . Power Chain Reactions . | . . . . Alert | -11 -10 -10 -8 ------- Run | Yrd Mat Sub Mat Maximum Alert Level . | . . . . Low Security (%) 100 | 100 100 . 100 Level 1 . | . . . . Level 2 . | . . . . Level 3 . | . . . . Level 4 . | . . . . Level 5 . | . . . . High Security . | . . . . Max Security . | . . . . Peak Influence 81 | 20 13 . 81 Initial 13 | . 13 . 7 Average 15 | 2 2 . 19 Influence Increases 472 | 20 . 45 407 Destroy 0b10 Robot/C 320 | 20 . . 300 Destroy 0b10 Robot/NC 20 | . . . 20 Destroy Leader 70 | . . . 70 Destroy Structure 2 | . . . 2 Lose Combat Pursuer 60 | . . 45 15 Influence Decreases 458 | . 20 30 408 Entered New Map 15 | . 7 . 8 Time Decay 289 | . 13 30 246 Lost Part 154 | . . . 154 Squads Dispatched 2 | . . . 2 Investigation . | . . . . Extermination . | . . . . Reinforcement 1 | . . . 1 Assault . | . . . . Garrison 1 | . . . 1 Intercept . | . . . . Searches Triggered . | . . . . Construction Impeded . | . . . . Haulers Reinforced . | . . . . Active Scanning Responses . | . . . . Cargo Convoy Interrupts . | . . . . Stealth | -11 -10 -10 -8 --------- Run | Yrd Mat Sub Mat Distress Signals 4 | . 1 . 3 Communications Jammed . | . . . . Distress Signals . | . . . . Times Spotted 41 | 1 3 7 30 Peak Tracking Total 8 | 1 3 2 8 Tactical Retreats 4 | . . 3 1 Traps | -11 -10 -10 -8 ------- Run | Yrd Mat Sub Mat Traps Triggered . | . . . . Indirectly . | . . . . Trap Hack Attempts . | . . . . Triggered . | . . . . Disarmed . | . . . . Reprogrammed . | . . . . Reused . | . . . . Traps Extracted . | . . . . Installed . | . . . . Triggered . | . . . . Machines | -11 -10 -10 -8 ---------- Run | Yrd Mat Sub Mat Machines Disabled . | . . . . Max in Single Turn . | . . . . Machines Repaired . | . . . . Machines Dismantled . | . . . . Machines Sabotaged . | . . . . Overloaded Fab Kills . | . . . . Hacking | -11 -10 -10 -8 --------- Run | Yrd Mat Sub Mat Machines Accessed 1 | . 1 . . Terminals 1 | . 1 . . Fabricators . | . . . . Repair Stations . | . . . . Recycling Units . | . . . . Scanalyzers . | . . . . Garrison Access . | . . . . Total Hacks 1 | . 1 . . Successful 1 | . 1 . . Failed . | . . . . Catastrophic . | . . . . Database Lockouts . | . . . . Manual . | . . . . Terminals 1 | . 1 . . Fabricators . | . . . . Repair Stations . | . . . . Recycling Units . | . . . . Scanalyzers . | . . . . Garrison Access . | . . . . Terminal Hacks 1 | . 1 . . Alert Level 1 | . 1 . . Fabricator Hacks . | . . . . Repair Station Hacks . | . . . . Recycling Unit Hacks . | . . . . Scanalyzer . | . . . . Garrison Access Hacks . | . . . . Unauthorized Hacks . | . . . . Terminals . | . . . . Fabricators . | . . . . Repair Stations . | . . . . Recycling Units . | . . . . Scanalyzers . | . . . . Garrison Access . | . . . . Data Cores Recovered . | . . . . Used . | . . . . Hacking Detections 1 | . 1 . . Full Trace Events . | . . . . Feedback Events . | . . . . Feedback Blocked . | . . . . Robot Schematics Acquired . | . . . . Robots Built . | . . . . Authchips . | . . . . Time . | . . . . Total Robot Build Rating . | . . . . Part Schematics Acquired . | . . . . Parts Built . | . . . . Authchips . | . . . . Time . | . . . . Total Part Build Rating . | . . . . Part Studies Acquired . | . . . . Parts Repaired . | . . . . Time . | . . . . Parts Recycled . | . . . . Recycled Matter . | . . . . Retrieved Matter . | . . . . Retrieved Components . | . . . . Parts Scanalyzed . | . . . . Part Schematics Acquired . | . . . . Parts Damaged . | . . . . Bothacking | -11 -10 -10 -8 ------------ Run | Yrd Mat Sub Mat Used RIF Installer . | . . . . Robots Hacked . | . . . . Non-combat . | . . . . Combat . | . . . . Robot Hacks Applied . | . . . . Relay Couplers Released . | . . . . Fabnet Peak Effective % . | . . . . Robots Rewired . | . . . . Allies Hacked . | . . . . Hacks Repelled . | . . . . Allies | -11 -10 -10 -8 -------- Run | Yrd Mat Sub Mat Total Allies . | . . . . Largest Group . | . . . . Highest-Rated Group . | . . . . Highest-Rated Ally . | . . . . Total Orders . | . . . . Ally Attacks . | . . . . Total Damage . | . . . . Kills . | . . . . Allies Corrupted . | . . . . Allies Melted . | . . . . Intel | -11 -10 -10 -8 ------- Run | Yrd Mat Sub Mat Active Infowar (turns) 562 | . 116 276 170 Optics 485 | . 116 276 93 Terrain 77 | . . . 77 Robot Analysis Total . | . . . . Derelict Logs Recovered . | . . . . Drone Launches . | . . . . Drone Recoveries . | . . . . Exploration | -11 -10 -10 -8 ------------- Run | Yrd Mat Sub Mat Turns Passed 1308 | 93 147 276 792 Spaces Moved 727 | 77 118 203 329 Core 32 | 20 . . 12 Treads 8 | . . . 8 Legs 635 | 57 118 203 257 Wheels 52 | . . . 52 Hover . | . . . . Flight . | . . . . Fastest Speed 50 | 50 120 120 95 Average Speed 128 | 101 120 120 143 Slowest Speed 250 | 120 120 120 250 Overloaded Moves . | . . . . Propulsion Burnouts . | . . . . Robots Hopped . | . . . . Potential Cave-ins . | . . . . Cave-ins Triggered . | . . . . Exploration Rate (%) 20 | 8 30 17 28 Regions Visited 3 Branch Regions 1 Pre-discovered Areas . | . . . . Known Exits Taken . | . . . . Unknown Exits Taken 3 | 1 1 1 . Scrap Searched . | . . . . Spaces Dug . | . . . . Terrain Destroyed 2 | . . . 2 Melee . | . . . . Projectile 2 | . . . 2 AOE . | . . . . Terrain Rammed . | . . . . Walls Destroyed . | . . . . Machines Disabled . | . . . . Actions | -11 -10 -10 -8 --------- Run | Yrd Mat Sub Mat Total 906 | 86 123 225 472 Wait 9 | . 2 1 6 Move 724 | 76 117 202 329 Hop . | . . . . Pick Up 12 | 3 1 3 5 Fast Attach 22 | 6 1 . 15 Attach 7 | . . . 7 Detach 3 | . . . 3 Swap 12 | . 1 6 5 Drop 11 | . 1 7 3 Fire 105 | 1 . 6 98 Melee . | . . . . Ram . | . . . . Kick 1 | . . . 1 Crush . | . . . . Escape Stasis . | . . . . Rewire . | . . . . Trap . | . . . . Miscellaneous . | . . . . Route ------- -11/Scrapyard -10/Materials (discovered 2 exits: [*Mat] / [*Sub]) -10/Subcaves (discovered 3 exits: [*Mat] / [*Rec] / [*Scr]) -8/Materials History --------- Turn | Location | Event 2 | -11/Scrapyard | Met Revision 17 74 | -11/Scrapyard | Discovered new exit (range 8) 94 | -11/Scrapyard | Entered Materials 95 | -10/Materials | Met a group of wandering Federalists 157 | -10/Materials | Discovered new exit (range 18) 225 | -10/Materials | Discovered new exit (range 10) 241 | -10/Materials | Entered Subcaves 241 | -10/Subcaves | Accompanied by 2 allies 242 | -10/Subcaves | Continued accompanying wandering Federalists (3) 340 | -10/Subcaves | Build established: Mutant 440 | -10/Subcaves | Discovered new exit (range 17) 448 | -10/Subcaves | Wandering Federalist uncovered a shortcut to Scraptown 500 | -10/Subcaves | Discovered new exit (range 15) 504 | -10/Subcaves | Lost 3 allies 517 | -10/Subcaves | Entered Materials 517 | -8/Materials | Evolved 4 slots: Power x1, Propulsion x2, Utility x1 765 | -8/Materials | Build established: Scavenger-Mutant 1082 | -8/Materials | Garrison activated, responded to threat 1205 | -8/Materials | Lost 10 parts (2p4n1u3w) 1216 | -8/Materials | Core integrity fell below 50% 1294 | -8/Materials | Core integrity fell below 20% 1309 | -8/Materials | Destroyed by G-47 Trooper with Particle Gun Last Messages --------------- K-01 Serf collects debris. R-06 Scavenger collects Wheel. Acquired Lgt. Nuclear Core. R-06 Scavenger collects Wheel. Acquired Carbon-fiber Leg. R-06 Scavenger collects Com. Wheel. Acquired 30 matter. U-05 Engineer builds a Door. R-06 Scavenger collects Lgt. Treads. Acquired Hvy. Particle Cannon. [Achievement: Hydra] Carbon-fiber Leg destroyed. W-25 Informer sends out distress signal. Particle Gun melted. G-47 Trooper destroyed. U-05 Engineer builds a Wall. Imp. Ion Engine destroyed. Critical hit (Burn: +37). U-05 Engineer builds a Wall. K-01 Serf collects debris. Map ----- +----------------------------------------------------+ | ?????????????????????????????????????????????????? | | ?????????????????????????????????????????????????? | | ?????????????????????????????????????????????????? | | ?????????????????????????????????????????????????? | | ?????????????????????????????????????????????????? | | ?????????????????????????????????????????????????? | | ?????????????????????????????????????????????????? | | ?????????????????????????????????????????????????? | | ??????????????????????????????H??????????????????? | | ?????????????????????????????????????????????????? | | ?????????????????????????????????????????????????? | | ?????????????????????????????????????????????????? | | ????????????????????????????? ?????????????????? | | ????????????????????????????? #????????????????? | | ????????????????????????????? #????????????????? | | ????????????????????????????# #????????????????? | | ????????????????????????????# #????????????????? | | ??????????????##???????????## +????????????????? | | ???????????? ?????????? #????????????????? | | ???????????? ??????????? #????????????????? | | ??????? ? """ ??????????? #?????##?????????? | | ??????? "G" ?########### #???? #?????????? | | ??????? " " ?# t ## #????" #?????????? | | ??????? # ## #????" #?????????? | | ???????? # ! ## #????" #?????????? | | ????????? # @ ## #??? #?????????? | | ?????????? # g= ## ##?? #?????????? | | ??????????"""" # g%!g ## #? =#######???? | | ????????? """" ####k###### ####+### ##### | | ??? """" % | | ??? % % %% % | | ??? % % %% % | | ??? ###########+######+### = ##### | | ?????#######" "## ????????? ???? ?###+####### | | ???????????#"R??#?????????# ???? ?#!%%! ## | | ???????????#??????????????# #???# # ## | | ??????????????????????????#####???# # ""## | | ??????????????????????????????????# # ""## | | ??????????????????????????????????# # ""## | | ??????????????????????????????????# # ""## | | ??????????????????????????????????# # ""## | | ??????????????????????????????????# # ## | | ??????????????????????????????????###### ## | | ???????????????????????????????????????########### | | ??????????????????????????????????????????#??????# | | ?????????????????????????????????????????????????# | | ?????????????????????????????????????????????????# | | ?????????????????????????????????????????????##### | | ?????????????????????????????????????????????# % | | ????????????????????????????????????????????## | +----------------------------------------------------+ Best States ------------- Heat Dissipation 45 Energy Generation 21 Energy Capacity 415 Matter Stores 300 Matter Capacity 300 Sight Range 21 Terrain Scan Range 16 Terrain Scan Density 10 Armor Coverage 150 Evasion (%) 55 Recoil Reduction 1 Defensive Hacking 10 Item Schematics ----------------- None Robot Schematics ------------------ None Fabricated ------------ Nothing Repaired ---------- Nothing Studied --------- None Alien Tech Used ----------------- None Achievements -------------- DATA ERROR: Steam Global Achievement% For Emergencies Only Hydra Spot Them First Storm Trooper Strength In Numbers Troublemaker Challenges ------------ None Game ------ Seed IntegratedMobileDoublenader Manual? 0 Play Time 00:34:07 Cumulative 1.6 hours Start 2026.02.09 @ 19:57:52 End 2026.02.09 @ 21:45:29 Sessions 6 Manual Loads 0 Difficulty Rogue Special Mode None Game No. 2 Rogue 2 Adventurer 0 Explorer 0 Win Type - Total 0 Types 0/0/0/0/0/0/0/0/0/0 Lore% 0 Gallery% 2 Achievement% 3 Wizard Run 0 Options --------- Layout 1 ASCII 1 Keyboard 1 Movement Vi Keybinds 0 Fullscreen 2 Font 24/Proggy Map View 50x35 Zoom Use 0% Tactical HUD 0 Map Filters NONE Filters NONE Steam 1 RUN: 12ee879b-dfd7-48d9-a28e-def834b269d4